fUST/lending_fUST_20240802
["ID","MTS","AMOUNT","RATE_DAILY","PERIOD"]
[333882595,1722594645680,-1992.16,0.00013961,2]
[333882596,1722594645691,-151.0,0.00013961,2]
[333882597,1722594645701,-176.04638141,0.00013961,2]
[333882598,1722594645714,-227.162846,0.00013961,2]
[333882599,1722594645726,-227.162846,0.00013961,2]
[333882600,1722594645736,-151.0,0.00013961,2]
[333882601,1722594645747,-190.927057,0.00013961,2]
[333882602,1722594645756,-190.927057,0.00013961,2]
[333882603,1722594645767,-151.0,0.00013961,2]
[333882604,1722594645777,-151.0,0.00013961,2]
[333882605,1722594645786,-372.024865,0.00013961,2]
[333882606,1722594645798,-372.024865,0.00013961,2]
[333882607,1722594645807,-151.0,0.00013961,2]
[333882608,1722594645817,-151.0,0.00013961,2]
[333882609,1722594645827,-151.0,0.00013961,2]
[333882610,1722594645836,-151.0,0.00013962,2]
[333882611,1722594645846,-151.0,0.00013962,2]
[333882612,1722594645856,-151.0,0.00013962,2]
[333882613,1722594645865,-151.449174,0.00013962,2]
[333882614,1722594645874,-151.0,0.00013962,2]
[333882615,1722594645884,-151.0,0.00013962,2]
[333882616,1722594645893,-500.0,0.00013971,2]
[333882617,1722594645903,-500.0,0.00013971,2]
[333882618,1722594645913,-1992.16,0.00013971,2]
[333882619,1722594645922,-500.0,0.00013972,2]
[333882620,1722594645932,-500.0,0.00013972,2]
[333882621,1722594645941,-500.0,0.00013972,2]
[333882622,1722594645951,-500.0,0.00013972,2]
[333882623,1722594645960,-500.0,0.00013972,2]
[333882624,1722594645970,-254.34845063,0.00013972,2]
[333882625,1722594645979,-151.0,0.00013972,2]
[333882626,1722594645989,-350.31172901,0.00013972,2]
[333882627,1722594645998,-500.0,0.00013972,2]
[333882628,1722594646008,-151.0,0.00013972,2]
[333882629,1722594646017,-500.0,0.00013972,2]
[333882630,1722594646027,-592.87907417,0.00013972,2]
[333882631,1722594646036,-500.0,0.00013972,2]
[333882632,1722594646046,-500.0,0.00013972,2]
[333882633,1722594646056,-500.0,0.00013972,2]
[333882634,1722594646066,-500.0,0.00013972,2]
[333882635,1722594646076,-84.55191154,0.00013972,2]
[333882636,1722594646326,-222.207578,0.00013698,2]
[333882637,1722594646336,-500.0,0.00013698,2]
[333882638,1722594646348,-1838.59520904,0.00013772,2]
[333882639,1722594646358,-222.207578,0.00013861,2]
[333882640,1722594646368,-222.207578,0.00013862,2]
[333882641,1722594646378,-222.207578,0.00013872,2]
[333882642,1722594646390,-415.44808846,0.00013972,2]
[333882643,1722594646402,-500.0,0.00013972,2]
[333882644,1722594646414,-500.0,0.00013972,2]
[333882645,1722594646425,-500.0,0.00013972,2]
[333882646,1722594646436,-785.44,0.00013972,2]
[333882647,1722594646448,-500.0,0.00013972,2]
[333882648,1722594646461,-100.1999493,0.00013972,2]
[333882649,1722594646479,-532.24891398,0.00013972,2]
[333882650,1722594646490,-477.48909034,0.00013972,2]
[333882651,1722594646500,-500.0,0.00013972,2]
[333882652,1722594646512,-500.0,0.00013972,2]
[333882653,1722594646523,-500.0,0.00013972,2]
[333882654,1722594646534,-503.33143735,0.00013972,2]
[333882655,1722594646544,-151.0,0.00013972,2]
[333882656,1722594646556,-151.0,0.00013972,2]
[333882657,1722594646569,-500.0,0.00013972,2]
[333882659,1722594646581,-500.0,0.00013972,2]
[333882661,1722594646592,-502.75779152,0.00013972,2]
[333882662,1722594646603,-500.0,0.00013972,2]
[333882663,1722594646612,-523.84,0.00013972,2]
[333882664,1722594646622,-500.0,0.00013972,2]
[333882665,1722594646631,-500.0,0.00013972,2]
[333882666,1722594646645,-500.0,0.00013972,2]
[333882667,1722594646656,-255.15035679,0.00013972,2]
[333882668,1722594646667,-500.0,0.00013972,2]
[333882669,1722594646679,-151.0,0.00013972,2]
[333882670,1722594646690,-282.229502,0.00013972,2]
[333882671,1722594646702,-500.0,0.00013972,2]
[333882672,1722594646712,-500.0,0.00013972,2]
[333882673,1722594646726,-151.0,0.00013972,2]
[333882674,1722594646736,-151.0,0.00013972,2]
[333882675,1722594646746,-151.0,0.00013972,2]
[333882676,1722594646755,-151.0,0.00013972,2]
[333882678,1722594646764,-500.0,0.00013972,2]
[333882680,1722594646774,-328.10424072,0.00013972,2]
[333882682,1722594646783,-151.0,0.00013972,2]
[333882683,1722594646793,-500.0,0.00013972,2]
[333882684,1722594646803,-500.0,0.00013972,2]
[333882686,1722594646813,-500.0,0.00013972,2]
[333882687,1722594646823,-147.36847481,0.00013972,2]
[333882688,1722594646838,-352.63152519,0.00013972,2]
[333882689,1722594646848,-500.0,0.00013972,2]
[333882690,1722594646857,-500.0,0.00013972,2]
[333882691,1722594646867,-151.0,0.00013972,2]
[333882692,1722594646876,-152.74347481,0.00013972,2]
[333882693,1722594646889,-347.25652519,0.00013972,2]
[333882694,1722594646900,-500.0,0.00013972,2]
[333882695,1722594646912,-500.0,0.00013972,2]
[333882696,1722594646924,-500.0,0.00013972,2]
[333882697,1722594646935,-500.0,0.00013972,2]
[333882698,1722594646946,-255.14315066,0.00013972,2]
[333882699,1722594646957,-500.0,0.00013972,2]
[333882700,1722594646967,-383.51452615,0.00013972,2]
[333882701,1722594647248,-390.43311382,0.00013698,2]
[333882702,1722594647261,-109.56688618,0.00013698,2]
[333882703,1722594647272,-222.207578,0.00013698,2]
[333882704,1722594647282,-222.207578,0.00013698,2]
[333882705,1722594647294,-222.207578,0.00013861,2]
[333882706,1722594647306,-185.62249305,0.00013862,2]
[333882707,1722594647321,-36.58508495,0.00013862,2]
[333882708,1722594647333,-222.207578,0.00013872,2]
[333882709,1722594647344,-116.48547385,0.00013972,2]
[333882710,1722594647355,-500.0,0.00013972,2]
[333882711,1722594647366,-500.0,0.00013972,2]
[333882712,1722594647375,-500.0,0.00013972,2]
[333882713,1722594647385,-500.0,0.00013972,2]
[333882714,1722594647396,-151.0,0.00013972,2]
[333882715,1722594647405,-151.0,0.00013972,2]
[333882716,1722594647415,-500.0,0.00013972,2]
[333882717,1722594647423,-500.0,0.00013972,2]
[333882718,1722594647433,-503.87964327,0.00013972,2]
[333882719,1722594647444,-500.0,0.00013972,2]
[333882720,1722594647453,-500.0,0.00013972,2]
[333882721,1722594647464,-330.23673493,0.00013972,2]
[333882722,1722594647476,-247.14670416,0.00013972,2]
[333882723,1722594647485,-506.12,0.00013972,2]
[333882724,1722594647495,-125.6600484,0.00013972,2]
[333882730,1722594696724,197.36110812,9.999e-05,2]
[333882731,1722594706366,195.95298196,9.999e-05,2]
[333882732,1722594720738,265.56237822,9.999e-05,2]
[333882733,1722594720999,156.52929486,9.999e-05,2]
[333882734,1722594725388,406.04755903,9.999e-05,2]
[333882735,1722594729246,531.09299059,9.999e-05,2]
[333882736,1722594736088,542.48310742,9.999e-05,2]
[333882737,1722594763176,2030.65796342,9.999e-05,2]
[333882738,1722594785530,9566.23980276,9.999e-05,2]
[333882739,1722594788596,7391.10195522,9.999e-05,2]
[333882746,1722595524499,942.28494783,9.999e-05,2]
[333882769,1722595831987,-163.499776,0.00012986,2]
[333882770,1722595831997,-385.87522763,0.00013598,2]
[333882771,1722595832010,-388.85142168,0.00013688,2]
[333882788,1722595837835,-432.85647337,0.00013688,2]
[333882792,1722595838128,-536.26419464,0.00013688,2]
[333882816,1722595841371,-39287.34113471,0.00013688,2]
[333882817,1722595841382,-133825.3689156,0.0001369,2]
[333882818,1722595841394,-5000.0,0.00013697,2]
[333882819,1722595841406,-1660.13,0.00013697,2]
[333882820,1722595841417,-500.0,0.00013698,2]
[333882821,1722595841427,-500.0,0.00013698,2]
[333882822,1722595841437,-500.0,0.00013698,2]
[333882823,1722595841446,-500.0,0.00013698,2]
[333882824,1722595841459,-568.57275059,0.00013698,2]
[333882825,1722595841470,-353.71210035,0.00013698,2]
[333882826,1722595841479,-312.80933271,0.00013698,2]
[333882827,1722595841489,-385.85513392,0.00013698,2]
[333882828,1722595841498,-500.0,0.00013698,2]
[333882829,1722595841508,-502.24355797,0.00013698,2]
[333882830,1722595841517,-500.0,0.00013698,2]
[333882831,1722595841527,-254.34845063,0.00013698,2]
[333882832,1722595841536,-244.5952608,0.00013698,2]
[333882833,1722595841545,-500.0,0.00013698,2]
[333882834,1722595841554,-500.0,0.00013698,2]
[333882835,1722595841564,-500.0,0.00013698,2]
[333882836,1722595841573,-531.07051844,0.00013698,2]
[333882837,1722595841583,-500.0,0.00013698,2]
[333882838,1722595841592,-500.0,0.00013698,2]
[333882839,1722595841601,-300.12596697,0.00013698,2]
[333882840,1722595841611,-500.0,0.00013698,2]
[333882841,1722595841620,-500.0,0.00013698,2]
[333882842,1722595841629,-500.0,0.00013698,2]
[333882843,1722595841639,-500.0,0.00013698,2]
[333882844,1722595841648,-500.0,0.00013698,2]
[333882845,1722595841657,-500.0,0.00013698,2]
[333882846,1722595841667,-500.0,0.00013698,2]
[333882847,1722595841676,-500.0,0.00013698,2]
[333882848,1722595841685,-500.0,0.00013698,2]
[333882849,1722595841694,-500.0,0.00013698,2]
[333882850,1722595841704,-719.98,0.00013698,2]
[333882851,1722595841716,-500.0,0.00013698,2]
[333882852,1722595841726,-472.60497919,0.00013698,2]
[333882853,1722595841736,-500.0,0.00013698,2]
[333882854,1722595841745,-500.0,0.00013698,2]
[333882855,1722595841755,-500.0,0.00013698,2]
[333882856,1722595841764,-500.0,0.00013698,2]
[333882857,1722595841773,-500.0,0.00013698,2]
[333882858,1722595841783,-500.0,0.00013698,2]
[333882859,1722595841792,-500.0,0.00013698,2]
[333882860,1722595841802,-500.0,0.00013698,2]
[333882861,1722595841811,-500.0,0.00013698,2]
[333882862,1722595841820,-500.0,0.00013698,2]
[333882863,1722595841830,-500.0,0.00013698,2]
[333882864,1722595841839,-500.0,0.00013698,2]
[333882865,1722595841848,-500.0,0.00013698,2]
[333882866,1722595841857,-500.0,0.00013698,2]
[333882867,1722595841867,-500.0,0.00013698,2]
[333882868,1722595841876,-500.0,0.00013698,2]
[333882869,1722595841886,-500.0,0.00013698,2]
[333882870,1722595841895,-280.05291229,0.00013698,2]
[333882871,1722595841904,-524.43319273,0.00013698,2]
[333882872,1722595841914,-500.0,0.00013698,2]
[333882873,1722595841923,-500.000001,0.00013698,2]
[333882874,1722595841932,-500.0,0.00013698,2]
[333882875,1722595841942,-500.0,0.00013698,2]
[333882876,1722595841952,-500.0,0.00013698,2]
[333882877,1722595841963,-500.0,0.00013698,2]
[333882878,1722595841972,-500.0,0.00013698,2]
[333882879,1722595841982,-500.0,0.00013698,2]
[333882880,1722595841991,-500.0,0.00013698,2]
[333882881,1722595842002,-143.23838488,0.00013698,2]
[333882882,1722595842018,-356.76161512,0.00013698,2]
[333882883,1722595842027,-453.20799169,0.00013698,2]
[333882884,1722595842039,-46.79200831,0.00013698,2]
[333882885,1722595842049,-500.0,0.00013698,2]
[333882886,1722595842059,-500.0,0.00013698,2]
[333882887,1722595842068,-500.0,0.00013698,2]
[333882888,1722595842078,-500.0,0.00013698,2]
[333882889,1722595842088,-167.65893808,0.00013698,2]
[333882890,1722595842100,-332.34106192,0.00013698,2]
[333882891,1722595842109,-500.0,0.00013698,2]
[333882892,1722595842119,-500.0,0.00013698,2]
[333882893,1722595842128,-500.0,0.00013698,2]
[333882894,1722595842137,-500.0,0.00013698,2]
[333882895,1722595842147,-500.0,0.00013698,2]
[333882896,1722595842156,-500.0,0.00013698,2]
[333882897,1722595842166,-500.0,0.00013698,2]
[333882898,1722595842176,-500.0,0.00013698,2]
[333882899,1722595842186,-500.0,0.00013698,2]
[333882900,1722595842195,-501.23858222,0.00013698,2]
[333882901,1722595842205,-316.18399748,0.00013698,2]
[333882902,1722595842217,-500.0,0.00013698,2]
[333882903,1722595842226,-500.0,0.00013698,2]
[333882904,1722595842236,-500.0,0.00013698,2]
[333882905,1722595842247,-500.0,0.00013698,2]
[333882906,1722595842257,-500.0,0.00013698,2]
[333882907,1722595842268,-500.0,0.00013698,2]
[333882908,1722595842278,-500.0,0.00013698,2]
[333882909,1722595842288,-523.13,0.00013698,2]
[333882910,1722595842299,-220.15540008,0.00013698,2]
[333882911,1722595842309,-488.67596929,0.00013698,2]
[333882912,1722595842319,-500.0,0.00013698,2]
[333882913,1722595842329,-500.0,0.00013698,2]
[333882914,1722595842338,-500.0,0.00013698,2]
[333882915,1722595842348,-500.0,0.00013698,2]
[333882916,1722595842357,-500.0,0.00013698,2]
[333882917,1722595842369,-500.0,0.00013698,2]
[333882918,1722595842379,-1836.39,0.00013698,2]
[333882919,1722595842390,-350.31172901,0.00013698,2]
[333882920,1722595842400,-500.0,0.00013698,2]
[333882921,1722595842410,-500.0,0.00013698,2]
[333882922,1722595842419,-699.19,0.00013698,2]
[333882923,1722595842429,-500.0,0.00013698,2]
[333882924,1722595842439,-345.54066042,0.00013698,2]
[333882925,1722595842448,-500.0,0.00013698,2]
[333882926,1722595842458,-500.0,0.00013698,2]
[333882928,1722595842467,-500.0,0.00013698,2]
[333882930,1722595842477,-500.0,0.00013698,2]
[333882932,1722595842487,-592.87907417,0.00013698,2]
[333882934,1722595842497,-925.64,0.00013698,2]
[333882937,1722595842506,-500.0,0.00013698,2]
[333882938,1722595842517,-1617.21,0.00013698,2]
[333882939,1722595842527,-500.0,0.00013698,2]
[333882940,1722595842538,-500.0,0.00013698,2]
[333882942,1722595842551,-500.0,0.00013698,2]
[333882943,1722595842560,-500.0,0.00013698,2]
[333882944,1722595842571,-500.0,0.00013698,2]
[333882945,1722595842580,-372.44,0.00013698,2]
[333882946,1722595842589,-500.0,0.00013698,2]
[333882947,1722595842599,-500.0,0.00013698,2]
[333882948,1722595842609,-500.0,0.00013698,2]
[333882949,1722595842618,-500.0,0.00013698,2]
[333882950,1722595842627,-500.0,0.00013698,2]
[333882951,1722595842637,-500.0,0.00013698,2]
[333882952,1722595842647,-500.0,0.00013698,2]
[333882953,1722595842658,-500.0,0.00013698,2]
[333882954,1722595842668,-500.0,0.00013698,2]
[333882955,1722595842678,-500.0,0.00013698,2]
[333882956,1722595842690,-503.43581047,0.00013698,2]
[333882957,1722595842699,-500.0,0.00013698,2]
[333882958,1722595842711,-500.0,0.00013698,2]
[333882959,1722595842721,-500.0,0.00013698,2]
[333882960,1722595842731,-998.95,0.00013698,2]
[333882961,1722595842743,-500.0,0.00013698,2]
[333882963,1722595842752,-500.0,0.00013698,2]
[333882964,1722595842859,-500.0,0.00013698,2]
[333882965,1722595842869,-500.0,0.00013698,2]
[333882966,1722595842878,-500.0,0.00013698,2]
[333882967,1722595842887,-500.0,0.00013698,2]
[333882968,1722595842897,-500.0,0.00013698,2]
[333882969,1722595842906,-792.05,0.00013698,2]
[333882970,1722595842916,-500.0,0.00013698,2]
[333882971,1722595842926,-500.0,0.00013698,2]
[333882972,1722595842935,-502.94085544,0.00013698,2]
[333882973,1722595842945,-500.0,0.00013698,2]
[333882974,1722595842955,-500.0,0.00013698,2]
[333882975,1722595842968,-500.0,0.00013698,2]
[333882976,1722595842977,-500.0,0.00013698,2]
[333882977,1722595842987,-500.0,0.00013698,2]
[333882978,1722595842997,-507.03103475,0.00013698,2]
[333882979,1722595843010,-374.3399516,0.00013698,2]
[333882981,1722595843019,-534.77,0.00013698,2]
[333882983,1722595843029,-500.0,0.00013698,2]
[333882985,1722595843038,-500.0,0.00013698,2]
[333882987,1722595843049,-500.0,0.00013698,2]
[333882988,1722595843059,-500.0,0.00013698,2]
[333882989,1722595843069,-500.0,0.00013698,2]
[333882990,1722595843078,-505.74303105,0.00013698,2]
[333882991,1722595843090,-500.0,0.00013698,2]
[333882992,1722595843100,-2436.54,0.00013698,2]
[333882993,1722595843110,-500.0,0.00013698,2]
[333882994,1722595843119,-504.73581637,0.00013698,2]
[333882995,1722595843129,-500.0,0.00013698,2]
[333882996,1722595843139,-500.0,0.00013698,2]
[333882997,1722595843148,-500.0,0.00013698,2]
[333882998,1722595843158,-500.0,0.00013698,2]
[333882999,1722595843167,-500.0,0.00013698,2]
[333883000,1722595843177,-500.0,0.00013698,2]
[333883001,1722595843187,-500.0,0.00013698,2]
[333883002,1722595843197,-500.0,0.00013698,2]
[333883003,1722595843206,-500.0,0.00013698,2]
[333883004,1722595843218,-500.0,0.00013698,2]
[333883005,1722595843227,-500.0,0.00013698,2]
[333883006,1722595843238,-500.0,0.00013698,2]
[333883007,1722595843247,-500.0,0.00013698,2]
[333883008,1722595843256,-500.0,0.00013698,2]
[333883009,1722595843265,-500.0,0.00013698,2]
[333883010,1722595843274,-166.3845537,0.00013698,2]
[333883011,1722595843460,-338.0212818,0.00013698,2]
[333883012,1722595843470,-347.48210702,0.00013698,2]
[333883022,1722595846100,-619.6,0.00013698,2]
[333883117,1722597040280,-21533.05539,0.00012707,2]
[333883118,1722597040290,-163.499776,0.00012986,2]
[333883119,1722597040300,-678.61637837,0.00013528,2]
[333883120,1722597040309,-150.0,0.00013534,2]
[333883121,1722597040319,-367.80729453,0.00013542,2]
[333883122,1722597040329,-1080.45063734,0.00013598,2]
[333883123,1722597040338,-1590.96,0.00013687,2]
[333883124,1722597040349,-10467.97985533,0.00013688,2]
[333883126,1722597040384,-37950.86265517,0.00013688,2]
[333883139,1722597043104,-1849.63187857,0.00013688,2]
[333883178,1722597956416,154.85389782,9.999e-05,2]
[333883179,1722597989755,26804.31860018,0.0001845,120]
[333883257,1722598232454,-164.087158,0.00012986,2]
[333883259,1722598232464,-1000.0,0.00013,13]
[333883261,1722598232475,-367.80729453,0.00013275,2]
[333883263,1722598232484,-3953.83862663,0.00013401,2]
[333883429,1722598240510,-434.02247936,0.00013401,2]
[333883430,1722598240602,-727.6386742,0.00013401,2]
[333883431,1722598240611,-864.36050988,0.00013588,2]
[333883432,1722598240620,-1495.06534101,0.00013598,2]
[333883433,1722598240677,-504.93465899,0.00013598,2]
[333883434,1722598240687,-588.3771857,0.000136,2]
[333883435,1722598240697,-206.9342036,0.000136,2]
[333883436,1722598240706,-294.2025256,0.000136,2]
[333883437,1722598240715,-306.0,0.000136,2]
[333883438,1722598240725,-413.8684072,0.000136,2]
[333883439,1722598240734,-153.0,0.000136,2]
[333883441,1722598240744,-294.2025256,0.000136,2]
[333883443,1722598240755,-306.0,0.000136,2]
[333883445,1722598240766,-206.9342036,0.000136,2]
[333883447,1722598240779,-153.0,0.000136,2]
[333883449,1722598240788,-588.3214547,0.000136,2]
[333883452,1722598240801,-864.36050987,0.00013657,2]
[333883454,1722598240811,-76625.12853071,0.00013678,2]
[333883693,1722598243386,-3184.71272529,0.00013678,2]
[333883695,1722598243396,-1885.21,0.00013687,2]
[333883697,1722598243405,-1885.21,0.00013687,2]
[333883699,1722598243414,-1885.21,0.00013687,2]
[333883701,1722598243424,-1885.21,0.00013687,2]
[333883703,1722598243434,-2245.20117471,0.00013688,5]
[333883705,1722598243446,-369.06255427,0.00013688,5]
[333884075,1722598247251,-656.70949551,0.00013688,5]
[333886784,1722599350150,5438.70474223,0.00025,60]
[333886846,1722599432461,-164.087158,0.00012986,2]
[333886850,1722599432473,-152.99335601,0.00013202,2]
[333886853,1722599432482,-367.80729453,0.00013234,2]
[333886856,1722599432492,-566.59012054,0.00013245,2]
[333886859,1722599432505,-302.0,0.00013245,2]
[333886866,1722599432537,-4246.90965965,0.00013245,2]
[333886869,1722599432546,-777.99562866,0.00013488,2]
[333886870,1722599432556,-622.93081892,0.00013494,2]
[333886874,1722599432569,-300.0,0.00013499,2]
[333886877,1722599432579,-1987.06381829,0.000135,2]
[333886879,1722599432593,-702.57850893,0.000135,2]
[333886881,1722599432602,-294.2025256,0.000135,2]
[333886882,1722599432614,-153.0,0.00013507,2]
[333886884,1722599432624,-413.816345,0.00013507,2]
[333886886,1722599432635,-777.99562863,0.00013513,2]
[333886888,1722599432646,-777.99562863,0.00013538,2]
[333886890,1722599432656,-777.99562863,0.00013563,2]
[333886891,1722599432666,-508.88083062,0.00013578,2]
[333886893,1722599432675,-16232.45528834,0.00013578,5]
[333886895,1722599432685,-10706.90385367,0.00013578,2]
[333886897,1722599434782,161.63,0.00025,60]
[333886906,1722599438394,-9191.23861238,0.00013578,2]
[333887097,1722599440481,-447.023371,0.00013488,2]
[333887109,1722599440587,-1540.95376791,0.00013488,2]
[333887111,1722599440596,-103094.74064695,0.00013578,2]
[333887113,1722599440606,-777.99562863,0.00013588,2]
[333887115,1722599440615,-88888.0,0.00013588,2]
[333887117,1722599440624,-200.0,0.00013598,2]
[333887119,1722599440634,-294.2025256,0.000136,2]
[333887121,1722599440643,-306.0,0.000136,2]
[333887123,1722599440652,-150.112233,0.000136,2]
[333887125,1722599440662,-153.0,0.000136,2]
[333887127,1722599440671,-206.9342036,0.000136,2]
[333887129,1722599440681,-154.3392,0.000136,2]
[333887131,1722599440691,-306.0,0.000136,2]
[333887133,1722599440700,-294.2025256,0.000136,2]
[333887135,1722599440710,-153.0,0.000136,2]
[333887137,1722599440719,-294.2025256,0.000136,2]
[333887139,1722599440729,-294.2025256,0.000136,2]
[333887141,1722599440739,-61496.4415566,0.00013658,2]
[333887143,1722599440748,-61496.4415566,0.00013658,2]
[333887145,1722599440758,-151.0,0.00013658,2]
[333887148,1722599440767,-151.0,0.00013658,2]
[333887150,1722599440778,-232.241455,0.00013658,2]
[333887152,1722599440787,-232.241455,0.00013658,2]
[333887154,1722599440796,-232.241455,0.00013658,2]
[333887156,1722599440806,-232.241455,0.00013658,2]
[333887158,1722599440815,-151.0,0.00013658,2]
[333887160,1722599440825,-151.0,0.00013658,2]
[333887162,1722599440835,-151.0,0.00013658,2]
[333887164,1722599440845,-151.0,0.00013658,2]
[333887166,1722599440855,-151.0,0.00013658,2]
[333887168,1722599440864,-151.0,0.00013658,2]
[333887170,1722599440874,-151.0,0.00013658,2]
[333887172,1722599440884,-151.0,0.00013658,2]
[333887174,1722599440894,-151.0,0.00013658,2]
[333887176,1722599440904,-151.0,0.00013658,2]
[333887178,1722599440914,-151.0,0.00013658,2]
[333887180,1722599440923,-151.0,0.00013658,2]
[333887182,1722599440933,-151.0,0.00013658,2]
[333887184,1722599440942,-151.0,0.00013658,2]
[333887186,1722599440951,-151.0,0.00013658,2]
[333887188,1722599440961,-151.0,0.00013658,2]
[333887190,1722599440970,-61496.4415566,0.00013667,2]
[333887192,1722599440980,-232.241455,0.00013667,2]
[333887194,1722599440990,-232.241455,0.00013667,2]
[333887196,1722599440999,-238.824813,0.00013667,2]
[333887198,1722599441009,-151.0,0.00013667,2]
[333887200,1722599441019,-151.0,0.00013667,2]
[333887202,1722599441028,-151.0,0.00013667,2]
[333887204,1722599441037,-151.0,0.00013667,2]
[333887207,1722599441048,-151.0,0.00013667,2]
[333887209,1722599441060,-61496.4415566,0.00013668,2]
[333887211,1722599441069,-151.0,0.00013668,2]
[333887213,1722599441079,-177.0811,0.00013668,2]
[333887215,1722599441089,-177.0811,0.00013668,2]
[333887217,1722599441098,-151.0,0.00013668,2]
[333887219,1722599441108,-190.260643,0.00013668,2]
[333887221,1722599441118,-190.260643,0.00013668,2]
[333887223,1722599441127,-151.0,0.00013668,2]
[333887225,1722599441138,-277.980505,0.00013668,2]
[333887227,1722599441154,-277.980505,0.00013668,2]
[333887240,1722599441265,-151.0,0.00013668,2]
[333887242,1722599441276,-151.0,0.00013668,2]
[333887244,1722599441286,-151.0,0.00013668,2]
[333887246,1722599441295,-151.0,0.00013668,2]
[333887248,1722599441304,-151.0,0.00013668,2]
[333887250,1722599441314,-186.841278,0.00013668,2]
[333887252,1722599441323,-186.841278,0.00013668,2]
[333887254,1722599441332,-151.0,0.00013668,2]
[333887256,1722599441341,-266.454584,0.00013668,2]
[333887259,1722599441351,-266.454584,0.00013668,2]
[333887261,1722599441360,-417.932451,0.00013668,2]
[333887263,1722599441370,-417.932451,0.00013668,2]
[333887265,1722599441380,-151.0,0.00013668,2]
[333887267,1722599441389,-151.0,0.00013668,2]
[333887269,1722599441399,-151.0,0.00013668,2]
[333887271,1722599441410,-151.0,0.00013668,2]
[333887273,1722599441420,-151.0,0.00013668,2]
[333887275,1722599441432,-631.449828,0.00013668,2]
[333887278,1722599441443,-631.449828,0.00013668,2]
[333887280,1722599441454,-151.0,0.00013668,2]
[333887282,1722599441467,-151.0,0.00013668,2]
[333887285,1722599441479,-151.0,0.00013668,2]
[333887287,1722599441495,-232.241455,0.00013668,2]
[333887289,1722599441504,-232.241455,0.00013668,2]
[333887291,1722599441517,-151.0,0.00013668,2]
[333887293,1722599441526,-151.0,0.00013668,2]
[333887295,1722599441537,-175.474858,0.00013668,2]
[333887297,1722599441548,-151.0,0.00013668,2]
[333887300,1722599441558,-151.0,0.00013668,2]
[333887302,1722599441568,-31198.38923315,0.00013677,5]
[333887304,1722599441578,-151.0,0.00013677,2]
[333887306,1722599441589,-177.0811,0.00013677,2]
[333887308,1722599441600,-177.0811,0.00013677,2]
[333887310,1722599441609,-151.0,0.00013677,2]
[333887312,1722599441619,-190.260643,0.00013677,2]
[333887314,1722599441628,-190.260643,0.00013677,2]
[333887316,1722599441638,-151.0,0.00013677,2]
[333887318,1722599441649,-277.980505,0.00013677,2]
[333887320,1722599441659,-277.980505,0.00013677,2]
[333887323,1722599441670,-151.0,0.00013677,2]
[333887325,1722599441681,-151.0,0.00013677,2]
[333887327,1722599441692,-151.0,0.00013677,2]
[333887329,1722599441703,-5930.02,0.00013677,2]
[333887331,1722599441713,-186.841278,0.00013677,2]
[333887333,1722599441724,-186.841278,0.00013677,2]
[333887335,1722599441735,-266.454584,0.00013677,2]
[333887337,1722599441745,-266.454584,0.00013677,2]
[333887339,1722599441755,-417.932451,0.00013677,2]
[333887341,1722599441766,-417.932451,0.00013677,2]